Cogmind - Beta 15 @@@ ROGUE MODE // 2025.05.13 @ 19:58:10 Player: Pitt Result: Destroyed by G-47 Trooper with Particle Gun Performance ------------- Evolutions (2) 1000 Regions Visited (3) 600 Robots Destroyed (21) 105 Value Destroyed (412) 412 Prototype IDs (2) 40 Alien Tech Used (0) 0 Bonus (0) 0 TOTAL SCORE: 2157 Bonus ------- None Cogmind --------- Core Integrity 0/550 Matter 262/300 Energy 94/100 System Corruption 0% Temperature Cool (9) Movement Core (200) Ox3 Location -8/Materials Parts ------- > --- POWER (1) -------- (None) > --- PROPULSION (3) --- (None) > --- UTILITY (5) ------ Medium Storage Unit Terrain Scan Processor > --- WEAPON (2) ------- Assault Rifle > --- INVENTORY (10) --- Light Ion Engine Weight Redist. System Trap Scanner Improved Sensor Array Signal Interpreter Improved Terrain Scanner Seismic Detector Improved Datajack Mining Laser Peak State ------------ > --- POWER ------------ Cooled Ion Engine > --- PROPULSION ------- Wheel Wheel Wheel > --- UTILITY ---------- Medium Storage Unit Structural Scanner Machine Analyzer Improved Terrain Scanner Terrain Scan Processor > --- WEAPON ----------- Improved Assault Rifle Improved Datajack > --- INVENTORY -------- Light Ion Engine Weight Redist. System Trap Scanner Improved Sensor Array Signal Interpreter Seismic Detector Small Laser Assault Rifle Mining Laser [Rating: 23] Favorites ----------- Power Cooled Ion Engine Engine Cooled Ion Engine Propulsion Wheel Wheel Wheel Utility Terrain Scan Processor Device Improved Terrain Scanner Storage Medium Storage Unit Processor Terrain Scan Processor Weapon Improved Assault Rifle Energy Gun Small Laser Ballistic Gun Improved Assault Rifle Special Weapon Mining Laser Slashing Weapon Blade Saw Special Melee Weapon Improved Datajack Build | -11 -10 -9 -8 ------- Run | Yrd Mat Mat Mat Slots Evolved 4 | . . 2 2 Power . | . . . . Propulsion 1 | . . 1 . Utility 3 | . . 1 2 Weapon . | . . . . Parts Attached 24 | 7 2 5 10 Power 2 | 1 . 1 . Engine 2 | 1 . 1 . Core . | . . . . Reactor . | . . . . Propulsion 4 | 2 . . 2 Treads . | . . . . Leg . | . . . . Wheel 4 | 2 . . 2 Hover . | . . . . Flight . | . . . . Utility 10 | 2 1 2 5 Device 6 | 1 1 . 4 Storage 2 | 1 . 1 . Processor 2 | . . 1 1 Hackware . | . . . . Protection . | . . . . Artifact . | . . . . Weapon 8 | 2 1 2 3 Energy Gun 2 | 1 . . 1 Energy Cannon . | . . . . Ballistic Gun 3 | 1 . 2 . Ballistic Cannon . | . . . . Launcher . | . . . . Special Weapon 1 | . 1 . . Impact Weapon . | . . . . Slashing Weapon 1 | . . . 1 Piercing Weapon . | . . . . Special Melee Weapon 1 | . . . 1 Unidentified Prototypes 2 | . . 2 . Parts Lost 7 | . . . 7 Power . | . . . . Propulsion 3 | . . . 3 Utility 2 | . . . 2 Weapon 2 | . . . 2 Highest Loss Streak 7 | . . . 7 To Critical Strikes . | . . . . Average Backups 8 | 2 7 8 9 Power . | . 1 1 1 Propulsion . | 1 1 . . Utility 5 | . 3 5 5 Weapon 1 | . 1 1 2 Tool/Special . | . . . . Unused Backups 8 | . 3 . 5 Power 1 | . . . 1 Propulsion 2 | . 2 . . Utility 4 | . . . 4 Weapon 1 | . 1 . . Tool/Special . | . . . . Average Slot Usage (%) 92 | . 100 87 95 Engine 10 | . 14 11 8 Wheel 23 | . 28 22 25 Device 14 | . 14 10 17 Storage 10 | . 14 11 9 Processor 12 | . . 10 17 Energy Gun 3 | . 5 1 5 Ballistic Gun 12 | . 14 15 8 Special Weapon 3 | . 8 4 1 Peak Build Rating 23 | 9 10 16 23 Average Rating 15 | 6 8 13 20 On Entrance 8 | . 9 8 16 Naked Turns . | . . . . Heaviest Build 27 | 14 14 24 27 Greatest Support 30 | 20 20 20 30 Greatest Overweight (x) 4 | . . 1 4 Average Overweight (x) . | . . . . Largest Inventory Capacity 10 | 8 8 10 10 Average Capacity 9 | 6 8 9 10 Most Carried 10 | 6 8 10 10 Average Carried 8 | 3 7 8 9 Final Capacity 10 | 8 8 10 10 Final Carried 10 | 6 8 10 9 Class Distribution -------------------- 58% | Mutant 19% | Scavenger-Skirmisher 15% | Scavenger-Mutant 6% | Scavenger-Assassin Dominant Class ---------------- Mutant | -10/Materials Mutant | -9/Materials Scavenger-Skirmisher | -8/Materials Resources | -11 -10 -9 -8 ----------- Run | Yrd Mat Mat Mat Matter Collected 830 | 288 13 116 413 Remotely . | . . . . Salvage Created 801 | 125 13 136 527 Parts 58 | 8 6 10 34 Haulers Intercepted 1 | . . 1 . Recyclers Shooed 1 | . . . 1 Parts Field Recycled . | . . . . Retrieved Matter . | . . . . Parts Self-Destructed . | . . . . Prevented . | . . . . Kills | -11 -10 -9 -8 ------- Run | Yrd Mat Mat Mat Combat Hostiles Destroyed 9 | . . 1 8 Melee 1 | . . . 1 Guns 8 | . . 1 7 Classes Destroyed 10 | 2 1 4 3 Worker 2 | . . . 2 Builder 1 | . 1 . . Tunneler 2 | 2 . . . Hauler 1 | . . 1 . Recycler 3 | 1 . . 2 Mechanic 1 | . . 1 . Watcher 2 | . . 1 1 Cutter 4 | . . . 4 Grunt 2 | . . . 2 Sentry 3 | . . 1 2 Best Kill Streak 3 | 2 1 2 3 Combat Bots Only 3 | . . 1 3 Max Kills in Single Turn 2 | 1 1 1 2 Gunslinging . | . . . . Exploded . | . . . . Melee 1 | . . . 1 Uniques/NPCs Destroyed . | . . . . Combat | -11 -10 -9 -8 -------- Run | Yrd Mat Mat Mat Hostile Shots Fired 123 | . . 16 107 Missed 33 | . . 2 31 Hits 90 | . . 14 76 Melee 17 | . . . 17 Projectile 73 | . . 14 59 AOE 3 | . . . 3 Critical Strikes 8 | . . . 8 Damage Taken 1468 | . . 206 1262 Core 604 | . . 41 563 Absorbed by Shields . | . . . . Core Remaining (%) 96 | 100 100 89 . Volleys Fired 80 | 6 12 15 47 Largest 2 | 2 2 2 2 Hottest 100 | 60 100 100 100 Shots Fired 132 | 12 18 29 73 Gun 119 | 12 12 28 67 Cannon . | . . . . Launcher . | . . . . Special 13 | . 6 1 6 Kinetic 71 | 6 6 15 44 Thermal 61 | 6 12 14 29 Explosive . | . . . . Electromagnetic . | . . . . Robot Hit Streak 11 | 5 3 11 10 Robot Miss Streak 3 | 1 3 2 3 Penetration Max . | . . . . Secondary Targets . | . . . . Shots Hit Robots 90 | 8 5 24 53 Core Hits 35 | 4 1 7 23 Critical Kills . | . . . . Critical Parts Destroyed . | . . . . Critical Strikes . | . . . . Melee Attacks 9 | . . . 9 Impact . | . . . . Slashing 4 | . . . 4 Piercing . | . . . . Sneak Attacks 3 | . . . 3 Combat Hostiles . | . . . . Follow-up Attacks . | . . . . Damage Inflicted 1210 | 99 55 328 728 Guns 1180 | 99 55 328 698 Cannons . | . . . . Explosions . | . . . . Melee 30 | . . . 30 Ramming . | . . . . Kinetic 775 | 66 35 205 469 Thermal 405 | 33 20 123 229 Explosive . | . . . . Electromagnetic . | . . . . Impact . | . . . . Slashing 30 | . . . 30 Piercing . | . . . . Highest Corruption . | . . . . Average Corruption . | . . . . Corruption Purged . | . . . . Corruption Blocked . | . . . . Overload Shots . | . . . . Overflow Damage . | . . . . Projectiles . | . . . . Explosions . | . . . . Melee . | . . . . Knockbacks . | . . . . Impact . | . . . . Kinetic . | . . . . Secondary . | . . . . Self-Inflicted Damage . | . . . . Shots . | . . . . Rammed . | . . . . Targets Rammed . | . . . . Kicked . | . . . . Crushed . | . . . . Highest Temperature 370 | 15 40 370 22 Average Temperature 45 | 10 19 109 6 Received Heat Transfer 540 | . . 63 477 Siege Activations . | . . . . Martial Activations . | . . . . Shielding Activations . | . . . . Robots Disrupted . | . . . . Combat Hostiles . | . . . . Robots Corrupted . | . . . . Combat Hostiles . | . . . . Parts Fried . | . . . . Impact Corruptions . | . . . . Robots Melted . | . . . . Combat Hostiles . | . . . . Parts Melted . | . . . . Heat Transferred 923 | 75 50 275 523 Parts Sabotaged . | . . . . Parts Stolen . | . . . . Parts Stripped . | . . . . Power Chain Reactions . | . . . . Alert | -11 -10 -9 -8 ------- Run | Yrd Mat Mat Mat Maximum Alert Level . | . . . . Low Security (%) 100 | 100 100 100 100 Level 1 . | . . . . Level 2 . | . . . . Level 3 . | . . . . Level 4 . | . . . . Level 5 . | . . . . High Security . | . . . . Max Security . | . . . . Peak Influence 102 | 5 41 30 102 Initial 9 | . . . 9 Average 7 | 1 10 1 12 Influence Increases 442 | 15 60 61 306 Destroy 0b10 Robot/C 180 | . . 20 160 Destroy 0b10 Robot/NC 60 | 15 5 15 25 Destroy Leader 56 | . . 14 42 Successful Hack 47 | . 36 11 . Disable Machine 30 | . 15 . 15 Destroy Structure 9 | . 4 1 4 Partial Spotted 15 | . . . 15 Lose Combat Pursuer 45 | . . . 45 Influence Decreases 372 | 15 60 38 259 Entered New Map 14 | . . . 14 Time Decay 288 | 15 60 38 175 Lost Part 70 | . . . 70 Squads Dispatched 4 | . . 1 3 Investigation . | . . . . Extermination . | . . . . Reinforcement 4 | . . 1 3 Assault . | . . . . Garrison . | . . . . Intercept . | . . . . Searches Triggered . | . . . . Construction Impeded . | . . . . Haulers Reinforced . | . . . . Active Scanning Responses . | . . . . Cargo Convoy Interrupts . | . . . . Stealth | -11 -10 -9 -8 --------- Run | Yrd Mat Mat Mat Distress Signals . | . . . . Communications Jammed . | . . . . Distress Signals . | . . . . Times Spotted 20 | . 2 4 14 Peak Tracking Total 7 | . 1 2 7 Tactical Retreats 1 | . . . 1 Traps | -11 -10 -9 -8 ------- Run | Yrd Mat Mat Mat Traps Triggered . | . . . . Indirectly . | . . . . Trap Hack Attempts . | . . . . Triggered . | . . . . Disarmed . | . . . . Reprogrammed . | . . . . Reused . | . . . . Traps Extracted . | . . . . Installed . | . . . . Triggered . | . . . . Machines | -11 -10 -9 -8 ---------- Run | Yrd Mat Mat Mat Machines Disabled 2 | . 1 . 1 Max in Single Turn 1 | . 1 . 1 Machines Repaired . | . . . . Machines Dismantled . | . . . . Machines Sabotaged . | . . . . Overloaded Fab Kills . | . . . . Hacking | -11 -10 -9 -8 --------- Run | Yrd Mat Mat Mat Machines Accessed 8 | . 2 4 2 Terminals 6 | . 2 3 1 Fabricators . | . . . . Repair Stations 1 | . . 1 . Recycling Units 1 | . . . 1 Scanalyzers . | . . . . Garrison Access . | . . . . Total Hacks 25 | . 6 14 5 Successful 9 | . 4 5 . Failed 16 | . 2 9 5 Catastrophic 4 | . . 2 2 Database Lockouts . | . . . . Manual 17 | . 5 7 5 Terminals 22 | . 6 13 3 Fabricators . | . . . . Repair Stations 1 | . . 1 . Recycling Units 2 | . . . 2 Scanalyzers . | . . . . Garrison Access . | . . . . Terminal Hacks 6 | . 2 4 . Terminal Index 2 | . 1 1 . Alert Level 2 | . . 2 . Zone Layout 2 | . 1 1 . Fabricator Hacks . | . . . . Repair Station Hacks . | . . . . Recycling Unit Hacks . | . . . . Scanalyzer . | . . . . Garrison Access Hacks . | . . . . Unauthorized Hacks 3 | . 2 1 . Terminals 3 | . 2 1 . Assimilate 1 | . . 1 . Botnet 1 | . 1 . . Operators 1 | . 1 . . Fabricators . | . . . . Repair Stations . | . . . . Recycling Units . | . . . . Scanalyzers . | . . . . Garrison Access . | . . . . Data Cores Recovered . | . . . . Used . | . . . . Hacking Detections 8 | . 2 4 2 Full Trace Events . | . . . . Feedback Events . | . . . . Feedback Blocked . | . . . . Robot Schematics Acquired . | . . . . Robots Built . | . . . . Authchips . | . . . . Time . | . . . . Total Robot Build Rating . | . . . . Part Schematics Acquired . | . . . . Parts Built . | . . . . Authchips . | . . . . Time . | . . . . Total Part Build Rating . | . . . . Parts Repaired . | . . . . Time . | . . . . Parts Recycled . | . . . . Recycled Matter . | . . . . Retrieved Matter . | . . . . Retrieved Components . | . . . . Parts Scanalyzed . | . . . . Part Schematics Acquired . | . . . . Parts Damaged . | . . . . Bothacking | -11 -10 -9 -8 ------------ Run | Yrd Mat Mat Mat Used RIF Installer . | . . . . Robots Hacked 2 | . . . 2 Non-combat 2 | . . . 2 Combat . | . . . . Robot Hacks Applied 2 | . . . 2 no_distress 2 | . . . 2 Relay Couplers Released . | . . . . Fabnet Peak Effective % . | . . . . Robots Rewired . | . . . . Allies Hacked . | . . . . Hacks Repelled . | . . . . Allies | -11 -10 -9 -8 -------- Run | Yrd Mat Mat Mat Total Allies . | . . . . Largest Group . | . . . . Highest-Rated Group . | . . . . Highest-Rated Ally . | . . . . Total Orders . | . . . . Ally Attacks . | . . . . Total Damage . | . . . . Kills . | . . . . Allies Corrupted . | . . . . Allies Melted . | . . . . Intel | -11 -10 -9 -8 ------- Run | Yrd Mat Mat Mat Active Infowar (turns) 2291 | 71 236 985 999 Sensors 130 | . . . 130 Terrain 1712 | 71 195 864 582 Structural 998 | . . . 998 Traps 157 | . . . 157 Seismic 269 | . 41 121 107 Machine Analysis 987 | . . . 987 Robot Analysis Total . | . . . . Derelict Logs Recovered . | . . . . Drone Launches . | . . . . Drone Recoveries . | . . . . Exploration | -11 -10 -9 -8 ------------- Run | Yrd Mat Mat Mat Turns Passed 2369 | 91 236 1011 1031 Spaces Moved 665 | 71 190 195 209 Core 8 | 1 . . 7 Treads . | . . . . Legs . | . . . . Wheels 657 | 70 190 195 202 Hover . | . . . . Flight . | . . . . Fastest Speed 50 | 50 80 80 80 Average Speed 84 | 79 80 87 88 Slowest Speed 250 | 80 80 95 250 Overloaded Moves . | . . . . Propulsion Burnouts . | . . . . Robots Hopped . | . . . . Potential Cave-ins . | . . . . Cave-ins Triggered . | . . . . Exploration Rate (%) 16 | 4 23 23 16 Regions Visited 3 Branch Regions . Pre-discovered Areas . | . . . . Known Exits Taken . | . . . . Unknown Exits Taken 3 | 1 1 1 . Scrap Searched . | . . . . Spaces Dug 10 | . 5 1 4 Terrain Destroyed 10 | . 5 1 4 Melee . | . . . . Projectile 10 | . 5 1 4 AOE . | . . . . Terrain Rammed . | . . . . Walls Destroyed . | . . . . Machines Disabled . | . . . . Actions | -11 -10 -9 -8 --------- Run | Yrd Mat Mat Mat Total 2288 | 89 243 1002 954 Wait 1458 | . 30 773 655 Move 662 | 70 189 194 209 Hop . | . . . . Pick Up 17 | 6 5 2 4 Fast Attach 16 | 7 . 4 5 Attach 4 | . . 1 3 Detach 2 | . . 2 . Swap 29 | . 4 7 18 Drop 11 | . 3 4 4 Fire 80 | 6 12 15 47 Melee 9 | . . . 9 Ram . | . . . . Kick . | . . . . Crush . | . . . . Escape Stasis . | . . . . Rewire . | . . . . Trap . | . . . . Miscellaneous . | . . . . Route ------- -11/Scrapyard -10/Materials -9/Materials (discovered 2 exits: *Mat / [*Min]) -8/Materials History --------- Turn | Location | Event 20 | -11/Scrapyard | Discovered new exit (range 12) 92 | -11/Scrapyard | Entered Materials 93 | -10/Materials | Met a group of wandering Federalists 103 | -10/Materials | Discovered new exit (range 17) 308 | -10/Materials | Build established: Mutant 328 | -10/Materials | Entered another Materials area 328 | -9/Materials | Evolved 2 slots: Propulsion x1, Utility x1 759 | -9/Materials | Discovered new exit (range 13) 1030 | -9/Materials | Discovered new exit (range 13) 1339 | -9/Materials | Entered another Materials area 1339 | -8/Materials | Evolved 2 slots: Utility x2 2043 | -8/Materials | Build established: Scavenger-Skirmisher 2339 | -8/Materials | Core integrity fell below 50% 2356 | -8/Materials | Core integrity fell below 20% 2370 | -8/Materials | Destroyed by G-47 Trooper with Particle Gun Last Messages --------------- 02334_ C-17 Slicer destroyed. 02335_ Wheel destroyed. 02338_ Particle Gun destroyed. 02338_ Structural Scanner severed. 02340_ Acquired Assault Rifle. 02341_ Assault Rifle severed. 02343_ Acquired 38 matter. 02344_ U-05 Engineer lays Concrete. 02347_ Acquired Blade Saw. 02348_ U-05 Engineer lays Concrete. 02350_ U-05 Engineer builds a Wall. 02355_ C-17 Slicer destroyed. 02355_ U-05 Engineer lays Concrete. 02357_ U-05 Engineer builds a Wall. 02361_ Blade Saw destroyed. 02362_ U-05 Engineer lays Concrete. 02364_ U-05 Engineer builds a Wall. 02365_ Imp. Heat Sink destroyed. 02367_ Acquired Assault Rifle. 02369_ U-05 Engineer lays Concrete. Map ----- +----------------------------------------------------+ | | | | | | | | | | | | | | | | | | | | | | | | | | | | | | | | | | | | | ???????#??#???????#??????#???????????????????????? | | ???????#??#??##?####???#?????????????????????????? | | ?????#?#?########?##?#############???????????????? | | ?????????#########################???????????????? | | ?????????############?## ##???????????????? | | ????????### ##?## """/= ####?????????????? | | ??#?#??#### """ ##### " =[% ######???????????? | | ??#???#??## """ #####!@!%!= ###############? | | ??#?####### """ ##### *g=== [#############? | | ?########## ##### """=/g g = = %[ ##? | | ?########## """ ##### """ [* ##*""""" ##? | | ?## ##### """ ##### """ ### """"" ##? | | ?## ##### """ ##### u#### """""????? | | ?## ##### ############# #### ????? | | ?## ##########+### ####### #### """"" ???? | | ?## % ! ####### + """"" ???? | | ?## ##?#?### # ## """""????? | | ?## ####?### #### ??????? | | ?## ##########+### ######## ########??????? | | ### ##### ## ######## ##### ??????? | | ### ##### """ ## # + ? ????""?????? | | ##?## "Y" ## # # ????T??????? | | #####| ## # # ##???????????? | | ### ##### ## # #######???????????? | | ### ##### """ + +% ######????????????? | | ?## ##### """ ## # ###??#????????????? | | ?## ##### """ ## # | ##?#??????????????? | | ### #####! ## # / ###???????????????? | | ## ############### #########????????????????? | | # ############## #########??#?????????????? | | # ### ? ???????????????????? | | " ##? ??? ????????????????? | +----------------------------------------------------+ Best States ------------- Heat Dissipation 45 Energy Generation 14 Energy Capacity 280 Matter Stores 300 Matter Capacity 300 Sight Range 16 Robot Scan Range 15 Terrain Scan Range 16 Terrain Scan Density 85 Evasion (%) 44 Item Schematics ----------------- None Robot Schematics ------------------ None Fabricated ------------ Nothing Repaired ---------- Nothing Alien Tech Used ----------------- None Achievements -------------- None Challenges ------------ None Game ------ Seed ZioniteSmartDoomcannon Manual? 0 Play Time 00:23:05 Cumulative 234.1 hours Start 2025.05.13 @ 19:35:48 End 2025.05.13 @ 19:58:10 Sessions 1 Manual Loads 0 Difficulty Rogue Special Mode None Game No. 366 Rogue 366 Adventurer 0 Explorer 0 Win Type - Total 0 Types 0/0/0/0/0/0/0/0/0/0 Lore% 38 Gallery% 51 Achievement% 41 Wizard Run 0 Options --------- Layout 0 ASCII 0 Keyboard 0 Movement Mouse Keybinds 0 Fullscreen 1 Font 18/SmallcapsGlow Map View 76x50 Zoom Use 0% Tactical HUD 1 Map Filters NONE Filters NONE Steam 1 RUN: 22ec80a2-b4d1-48b8-abea-0a02a371d577